[Event "Early-Titled-Tuesday-Blitz-January-23-2024"]
[Site "Chess.com"]
[Date "2024.01.23"]
[Round "7"]
[White "Shuvalov"]
[Black "DrCeltic"]
[Result "1-0"]
[WhiteElo "2478"]
[BlackElo "2599"]
[TimeControl "180+1"]
[EndTime "9:18:14 PST"]
[Termination "Shuvalov won on time"]

1. d4 {[%clk 0:03:00.9]} 1... d5 {[%clk 0:02:59.5]} 2. c4 {[%clk 0:03:01.1]}
2... c6 {[%clk 0:03:00.2]} 3. Nc3 {[%clk 0:02:59.2]} 3... Nf6 {[%clk 0:03:00.9]}
4. e3 {[%clk 0:02:59.5]} 4... Bf5 {[%clk 0:03:00.1]} 5. cxd5 {[%clk 0:02:59.3]}
5... cxd5 {[%clk 0:03:01]} 6. Qb3 {[%clk 0:02:59.8]} 6... Bc8 {[%clk 0:03:01.6]}
7. Nf3 {[%clk 0:02:58.5]} 7... e6 {[%clk 0:03:01.9]} 8. Bd3 {[%clk 0:02:58.4]}
8... Bd6 {[%clk 0:03:00.4]} 9. Bd2 {[%clk 0:02:58.3]} 9... O-O {[%clk
0:03:00.6]} 10. O-O {[%clk 0:02:58.2]} 10... b6 {[%clk 0:03:00.2]} 11. Rfc1
{[%clk 0:02:55.2]} 11... Nbd7 {[%clk 0:02:27.4]} 12. Nb5 {[%clk 0:02:52.2]}
12... Bb8 {[%clk 0:02:26]} 13. Qc2 {[%clk 0:02:47]} 13... Ba6 {[%clk 0:02:14.5]}
14. a4 {[%clk 0:02:33.5]} 14... h6 {[%clk 0:02:07.9]} 15. Bb4 {[%clk 0:02:32.1]}
15... Re8 {[%clk 0:02:08.2]} 16. h3 {[%clk 0:02:24.9]} 16... e5 {[%clk
0:01:54.7]} 17. dxe5 {[%clk 0:02:24.2]} 17... Nxe5 {[%clk 0:01:53.7]} 18. Nxe5
{[%clk 0:02:21.8]} 18... Bxe5 {[%clk 0:01:54.6]} 19. Bc3 {[%clk 0:02:19]} 19...
Bxc3 {[%clk 0:01:23]} 20. Qxc3 {[%clk 0:02:18.8]} 20... Ne4 {[%clk 0:01:10.1]}
21. Qd4 {[%clk 0:02:16.8]} 21... Bxb5 {[%clk 0:01:04.6]} 22. Bxb5 {[%clk
0:02:01.8]} 22... Re6 {[%clk 0:01:01.3]} 23. Bc6 {[%clk 0:01:37.3]} 23... Rc8
{[%clk 0:01:01.4]} 24. Bxd5 {[%clk 0:01:31.4]} 24... Rxc1+ {[%clk 0:00:46]} 25.
Rxc1 {[%clk 0:01:32.3]} 25... Rd6 {[%clk 0:00:41.1]} 26. Qxe4 {[%clk 0:01:27.4]}
26... Rxd5 {[%clk 0:00:40.3]} 27. g3 {[%clk 0:01:17]} 27... g6 {[%clk
0:00:40.4]} 28. Kg2 {[%clk 0:01:16]} 28... h5 {[%clk 0:00:40.4]} 29. Rc8 {[%clk
0:01:11.4]} 29... Qxc8 {[%clk 0:00:38.8]} 30. Qxd5 {[%clk 0:01:11.8]} 30... Qc2
{[%clk 0:00:34.1]} 31. Qd4 {[%clk 0:01:00.4]} 31... Qb3 {[%clk 0:00:30.6]} 32.
h4 {[%clk 0:00:57.9]} 32... Qe6 {[%clk 0:00:30.2]} 33. Kh2 {[%clk 0:00:51.9]}
33... Qf5 {[%clk 0:00:28.1]} 34. e4 {[%clk 0:00:50.5]} 34... Qf3 {[%clk
0:00:25.7]} 35. b4 {[%clk 0:00:49.5]} 35... Qb3 {[%clk 0:00:18]} 36. b5 {[%clk
0:00:49.3]} 36... Qc2 {[%clk 0:00:16.8]} 37. e5 {[%clk 0:00:48.1]} 37... Qa2
{[%clk 0:00:16.4]} 38. Kg2 {[%clk 0:00:47.4]} 38... Kh7 {[%clk 0:00:16.3]} 39.
Qf4 {[%clk 0:00:46.1]} 39... Qd5+ {[%clk 0:00:15.4]} 40. Qf3 {[%clk 0:00:46.1]}
40... Qa2 {[%clk 0:00:16]} 41. Qe4 {[%clk 0:00:43.5]} 41... Qe6 {[%clk
0:00:15.5]} 42. Qd4 {[%clk 0:00:41.3]} 42... Qb3 {[%clk 0:00:14.4]} 43. Qd7
{[%clk 0:00:36.6]} 43... Kg8 {[%clk 0:00:09.1]} 44. Qxa7 {[%clk 0:00:33.6]}
44... Qd5+ {[%clk 0:00:09.3]} 45. Kh2 {[%clk 0:00:33.8]} 45... Qd4 {[%clk
0:00:07.9]} 46. Qa8+ {[%clk 0:00:28.9]} 46... Kg7 {[%clk 0:00:07.5]} 47. Qf3
{[%clk 0:00:27.7]} 47... Qxe5 {[%clk 0:00:06.6]} 48. Qe3 {[%clk 0:00:25.9]}
48... Qd6 {[%clk 0:00:05.7]} 49. Kg2 {[%clk 0:00:23.3]} 49... Kh7 {[%clk
0:00:06]} 50. Qe4 {[%clk 0:00:22.2]} 50... Qa3 {[%clk 0:00:04.3]} 51. Qd4 {[%clk
0:00:20.8]} 1-0

[Event "Early-Titled-Tuesday-Blitz-January-23-2024"]
[Site "Chess.com"]
[Date "2024.01.23"]
[Round "7"]
[White "Mops_2004"]
[Black "Fandorine"]
[Result "1/2-1/2"]
[WhiteElo "2858"]
[BlackElo "2977"]
[TimeControl "180+1"]
[EndTime "9:18:15 PST"]
[Termination "Game drawn by repetition"]

1. Nf3 {[%clk 0:03:00.9]} 1... Nf6 {[%clk 0:02:58.5]} 2. c4 {[%clk 0:02:59.9]}
2... g6 {[%clk 0:02:58.9]} 3. g3 {[%clk 0:02:59.6]} 3... Bg7 {[%clk 0:02:59.4]}
4. Bg2 {[%clk 0:02:59.8]} 4... O-O {[%clk 0:03:00.3]} 5. O-O {[%clk 0:02:59.8]}
5... c5 {[%clk 0:02:59.8]} 6. Nc3 {[%clk 0:02:53.2]} 6... Nc6 {[%clk 0:03:00.4]}
7. d4 {[%clk 0:02:51.8]} 7... d6 {[%clk 0:03:00.9]} 8. dxc5 {[%clk 0:02:49.9]}
8... dxc5 {[%clk 0:03:01.8]} 9. Bf4 {[%clk 0:02:50.3]} 9... Bf5 {[%clk
0:03:00.9]} 10. Ne5 {[%clk 0:02:50.1]} 10... Nd4 {[%clk 0:03:00.7]} 11. Bxb7
{[%clk 0:02:22.8]} 11... Rb8 {[%clk 0:02:55.4]} 12. Bg2 {[%clk 0:02:15.3]} 12...
Rxb2 {[%clk 0:02:43.4]} 13. e3 {[%clk 0:02:15.3]} 13... Ne6 {[%clk 0:02:20.5]}
14. Nc6 {[%clk 0:02:07.3]} 14... Qe8 {[%clk 0:01:40]} 15. Be5 {[%clk 0:02:07.1]}
15... h5 {[%clk 0:01:22.5]} 16. Nb5 {[%clk 0:01:48.5]} 16... Ne4 {[%clk
0:01:07.1]} 17. Bxg7 {[%clk 0:01:27.6]} 17... Kxg7 {[%clk 0:01:05.4]} 18. Qc1
{[%clk 0:01:28.2]} 18... Rd2 {[%clk 0:00:23.1]} 19. Bxe4 {[%clk 0:00:49.7]}
19... Bxe4 {[%clk 0:00:23.4]} 20. Qxd2 {[%clk 0:00:49.6]} 20... Qxc6 {[%clk
0:00:11.4]} 21. f4 {[%clk 0:00:49]} 21... h4 {[%clk 0:00:07.9]} 22. g4 {[%clk
0:00:38.4]} 22... h3 {[%clk 0:00:08.4]} 23. Nc3 {[%clk 0:00:32.2]} 23... Bg2
{[%clk 0:00:07.9]} 24. Rfe1 {[%clk 0:00:24.4]} 24... Rd8 {[%clk 0:00:07.6]} 25.
Nd5 {[%clk 0:00:24.5]} 25... Bxd5 {[%clk 0:00:07.3]} 26. cxd5 {[%clk 0:00:24.9]}
26... Rxd5 {[%clk 0:00:08.1]} 27. Qb2+ {[%clk 0:00:22.8]} 27... f6 {[%clk
0:00:07.8]} 28. Qf2 {[%clk 0:00:18.3]} 28... c4 {[%clk 0:00:06.8]} 29. Rac1
{[%clk 0:00:18.7]} 29... Rd3 {[%clk 0:00:06]} 30. Red1 {[%clk 0:00:16.6]} 30...
Qe4 {[%clk 0:00:05.4]} 31. Re1 {[%clk 0:00:14.4]} 31... Nc5 {[%clk 0:00:05.1]}
32. g5 {[%clk 0:00:13.1]} 32... f5 {[%clk 0:00:04.5]} 33. Rb1 {[%clk 0:00:10.6]}
33... Kf7 {[%clk 0:00:04.7]} 34. Rb5 {[%clk 0:00:09.9]} 34... Qc6 {[%clk
0:00:04.6]} 35. Rb2 {[%clk 0:00:09.4]} 35... c3 {[%clk 0:00:05]} 36. Rc2 {[%clk
0:00:09.4]} 36... Qe4 {[%clk 0:00:05.2]} 37. Rec1 {[%clk 0:00:08.9]} 37... Rxe3
{[%clk 0:00:03.5]} 38. Rf1 {[%clk 0:00:02.2]} 38... Nd3 {[%clk 0:00:04]} 39. Qh4
{[%clk 0:00:01.5]} 39... Re2 {[%clk 0:00:03.3]} 40. Qh7+ {[%clk 0:00:02.1]}
40... Ke8 {[%clk 0:00:03.3]} 41. Qg8+ {[%clk 0:00:02.5]} 41... Kd7 {[%clk
0:00:03.3]} 42. Rxe2 {[%clk 0:00:02.8]} 42... Qxe2 {[%clk 0:00:04]} 43. Qd5+
{[%clk 0:00:03.2]} 43... Kc7 {[%clk 0:00:03.9]} 44. Qc4+ {[%clk 0:00:03.2]}
44... Kd6 {[%clk 0:00:03.7]} 45. Qd4+ {[%clk 0:00:03.3]} 45... Kc7 {[%clk
0:00:02.6]} 46. Qc4+ {[%clk 0:00:03.2]} 46... Kd7 {[%clk 0:00:02.4]} 47. Qd5+
{[%clk 0:00:03.3]} 47... Kc8 {[%clk 0:00:02.6]} 48. Qg8+ {[%clk 0:00:02.9]}
48... Kc7 {[%clk 0:00:03.2]} 49. Qc4+ {[%clk 0:00:03.1]} 1/2-1/2

[Event "Early-Titled-Tuesday-Blitz-January-23-2024"]
[Site "Chess.com"]
[Date "2024.01.23"]
[Round "7"]
[White "Baronessa08"]
[Black "KVAIDAN"]
[Result "1-0"]
[WhiteElo "2540"]
[BlackElo "2365"]
[TimeControl "180+1"]
[EndTime "9:18:18 PST"]
[Termination "Baronessa08 won by resignation"]

1. d4 {[%clk 0:03:00.9]} 1... e6 {[%clk 0:02:57.7]} 2. c4 {[%clk 0:02:59.9]}
2... f5 {[%clk 0:02:58.2]} 3. Nf3 {[%clk 0:02:58.1]} 3... Nf6 {[%clk 0:02:58.6]}
4. g3 {[%clk 0:02:57.6]} 4... Be7 {[%clk 0:02:58.7]} 5. Bg2 {[%clk 0:02:57.5]}
5... d6 {[%clk 0:02:58.6]} 6. O-O {[%clk 0:02:57.5]} 6... O-O {[%clk 0:02:59.1]}
7. b4 {[%clk 0:02:57.3]} 7... a5 {[%clk 0:02:59.6]} 8. b5 {[%clk 0:02:57.4]}
8... Qe8 {[%clk 0:02:58.7]} 9. Bb2 {[%clk 0:02:57.6]} 9... Qh5 {[%clk
0:02:58.1]} 10. e3 {[%clk 0:02:52.6]} 10... Qh6 {[%clk 0:02:56.9]} 11. Nfd2
{[%clk 0:02:28.2]} 11... Nbd7 {[%clk 0:02:47.3]} 12. e4 {[%clk 0:02:24.9]} 12...
f4 {[%clk 0:02:45.9]} 13. e5 {[%clk 0:02:09.8]} 13... Ne8 {[%clk 0:02:38.6]} 14.
Ne4 {[%clk 0:01:58.5]} 14... dxe5 {[%clk 0:02:31.9]} 15. dxe5 {[%clk 0:01:57.5]}
15... Nc5 {[%clk 0:02:30]} 16. Nxc5 {[%clk 0:01:47.8]} 16... Bxc5 {[%clk
0:02:29.4]} 17. Nd2 {[%clk 0:01:44.7]} 17... fxg3 {[%clk 0:02:24.6]} 18. hxg3
{[%clk 0:01:44.1]} 18... c6 {[%clk 0:02:13.4]} 19. Ne4 {[%clk 0:01:42.8]} 19...
Be7 {[%clk 0:02:12.7]} 20. Nd6 {[%clk 0:01:34.3]} 20... cxb5 {[%clk 0:02:06.5]}
21. cxb5 {[%clk 0:01:32.4]} 21... Nc7 {[%clk 0:01:53.2]} 22. Nxc8 {[%clk
0:01:20.9]} 22... Raxc8 {[%clk 0:01:52.5]} 23. Bxb7 {[%clk 0:01:14.2]} 23...
Rcd8 {[%clk 0:01:51.4]} 24. Qg4 {[%clk 0:01:03.2]} 24... Nxb5 {[%clk 0:01:42.5]}
25. a4 {[%clk 0:01:02.7]} 25... Nc7 {[%clk 0:01:40.9]} 26. Bg2 {[%clk
0:01:00.4]} 26... Nd5 {[%clk 0:01:40.3]} 27. Rad1 {[%clk 0:00:54.3]} 27... Bc5
{[%clk 0:01:36.9]} 28. Bxd5 {[%clk 0:00:38.4]} 28... Rxd5 {[%clk 0:01:30.4]} 29.
Rxd5 {[%clk 0:00:37.9]} 29... exd5 {[%clk 0:01:30.6]} 30. e6 {[%clk 0:00:38.3]}
30... Re8 {[%clk 0:01:29.8]} 31. Rc1 {[%clk 0:00:35.5]} 31... Bf8 {[%clk
0:01:19.6]} 32. Rc7 {[%clk 0:00:31.7]} 32... Rxe6 {[%clk 0:01:12.7]} 33. Kg2
{[%clk 0:00:20.7]} 33... Qg6 {[%clk 0:01:11.3]} 34. Qxg6 {[%clk 0:00:15.2]}
34... Rxg6 {[%clk 0:01:00.8]} 35. Ra7 {[%clk 0:00:14.4]} 35... Rb6 {[%clk
0:00:57.2]} 36. Be5 {[%clk 0:00:13.9]} 36... Re6 {[%clk 0:00:55.3]} 37. f4
{[%clk 0:00:13.6]} 37... g5 {[%clk 0:00:48.9]} 38. Rxa5 {[%clk 0:00:12.8]} 38...
h5 {[%clk 0:00:49.3]} 39. Rxd5 {[%clk 0:00:12.2]} 39... h4 {[%clk 0:00:49.8]}
40. a5 {[%clk 0:00:11.7]} 40... hxg3 {[%clk 0:00:49.3]} 41. fxg5 {[%clk
0:00:10]} 41... Kf7 {[%clk 0:00:46.9]} 42. Kxg3 {[%clk 0:00:09.9]} 42... Kg6
{[%clk 0:00:45.1]} 43. Kg4 {[%clk 0:00:10.1]} 43... Bb4 {[%clk 0:00:42.4]} 44.
Rb5 {[%clk 0:00:10.2]} 44... Bd2 {[%clk 0:00:39.4]} 45. Rb6 {[%clk 0:00:09.7]}
45... Kf7 {[%clk 0:00:28.1]} 46. Rxe6 {[%clk 0:00:09.3]} 46... Kxe6 {[%clk
0:00:28.1]} 47. a6 {[%clk 0:00:09.9]} 47... Be3 {[%clk 0:00:26.5]} 48. Bf4
{[%clk 0:00:10]} 48... Ba7 {[%clk 0:00:25.6]} 49. Kh5 {[%clk 0:00:09.5]} 49...
Kf7 {[%clk 0:00:25.9]} 50. g6+ {[%clk 0:00:09.4]} 50... Kg7 {[%clk 0:00:26.3]}
51. Be5+ {[%clk 0:00:09]} 51... Kg8 {[%clk 0:00:26.4]} 52. Kg5 {[%clk
0:00:09.3]} 52... Be3+ {[%clk 0:00:23.8]} 53. Kf5 {[%clk 0:00:09.7]} 53... Ba7
{[%clk 0:00:23.5]} 54. Ke6 {[%clk 0:00:08.5]} 54... Kf8 {[%clk 0:00:23.6]} 55.
Kd7 {[%clk 0:00:08.6]} 55... Kg8 {[%clk 0:00:23.1]} 56. Kc6 {[%clk 0:00:08.6]}
56... Kf8 {[%clk 0:00:22.4]} 57. Kb7 {[%clk 0:00:09.2]} 1-0

[Event "Early-Titled-Tuesday-Blitz-January-23-2024"]
[Site "Chess.com"]
[Date "2024.01.23"]
[Round "7"]
[White "dmosesov"]
[Black "toninhojit"]
[Result "0-1"]
[WhiteElo "2600"]
[BlackElo "2454"]
[TimeControl "180+1"]
[EndTime "9:18:18 PST"]
[Termination "toninhojit won on time"]

1. Nf3 {[%clk 0:03:00.9]} 1... c5 {[%clk 0:02:59.5]} 2. e4 {[%clk 0:02:59.2]}
2... d6 {[%clk 0:02:58.2]} 3. Nc3 {[%clk 0:02:57.7]} 3... Nf6 {[%clk 0:02:58.2]}
4. Bb5+ {[%clk 0:02:57.4]} 4... Bd7 {[%clk 0:02:57.8]} 5. Qe2 {[%clk 0:02:57.6]}
5... a6 {[%clk 0:02:57.8]} 6. Bxd7+ {[%clk 0:02:57.3]} 6... Qxd7 {[%clk
0:02:58.6]} 7. d4 {[%clk 0:02:57.1]} 7... cxd4 {[%clk 0:02:57.9]} 8. Nxd4 {[%clk
0:02:58]} 8... g6 {[%clk 0:02:55.9]} 9. Bg5 {[%clk 0:02:48.8]} 9... Bg7 {[%clk
0:02:47.8]} 10. O-O-O {[%clk 0:02:41.3]} 10... Nc6 {[%clk 0:02:14.5]} 11. Nxc6
{[%clk 0:02:25.6]} 11... Qxc6 {[%clk 0:02:13.3]} 12. f4 {[%clk 0:02:26.2]} 12...
Rc8 {[%clk 0:01:56.2]} 13. Nd5 {[%clk 0:01:58.4]} 13... Qc4 {[%clk 0:01:15.6]}
14. Qxc4 {[%clk 0:01:48.6]} 14... Rxc4 {[%clk 0:01:16.5]} 15. Bxf6 {[%clk
0:01:49.2]} 15... Bxf6 {[%clk 0:01:16.8]} 16. Nxf6+ {[%clk 0:01:37]} 16... exf6
{[%clk 0:01:17.7]} 17. Rhe1 {[%clk 0:01:37.4]} 17... Ke7 {[%clk 0:01:15.8]} 18.
b3 {[%clk 0:01:37.6]} 18... Rc5 {[%clk 0:01:13.2]} 19. Rd5 {[%clk 0:01:33.2]}
19... Rxd5 {[%clk 0:01:08.9]} 20. exd5+ {[%clk 0:01:34.1]} 20... Kd7 {[%clk
0:01:09.8]} 21. Kd2 {[%clk 0:01:33]} 21... Rc8 {[%clk 0:01:08.4]} 22. c4 {[%clk
0:01:32.9]} 22... b5 {[%clk 0:01:08.8]} 23. Kc3 {[%clk 0:01:29.7]} 23... bxc4
{[%clk 0:01:01.4]} 24. bxc4 {[%clk 0:01:30.6]} 24... Rb8 {[%clk 0:01:02.2]} 25.
Re2 {[%clk 0:01:07.9]} 25... Rb7 {[%clk 0:01:00.8]} 26. Kd4 {[%clk 0:01:06.4]}
26... Rb1 {[%clk 0:01:00.4]} 27. Re3 {[%clk 0:01:06.1]} 27... Rb2 {[%clk
0:00:55.6]} 28. Ra3 {[%clk 0:01:03.4]} 28... Rxg2 {[%clk 0:00:52.6]} 29. Rxa6
{[%clk 0:01:03.5]} 29... Rxh2 {[%clk 0:00:53.1]} 30. Ra7+ {[%clk 0:01:03.2]}
30... Ke8 {[%clk 0:00:53.7]} 31. a4 {[%clk 0:00:53.9]} 31... h5 {[%clk
0:00:53.1]} 32. a5 {[%clk 0:00:53]} 32... h4 {[%clk 0:00:53.6]} 33. a6 {[%clk
0:00:48.1]} 33... Ra2 {[%clk 0:00:53.5]} 34. c5 {[%clk 0:00:45]} 34... Ra4+
{[%clk 0:00:51.3]} 35. Kc3 {[%clk 0:00:43.4]} 35... dxc5 {[%clk 0:00:51.2]} 36.
d6 {[%clk 0:00:43.2]} 36... h3 {[%clk 0:00:48.5]} 37. Re7+ {[%clk 0:00:39.7]}
37... Kf8 {[%clk 0:00:39.1]} 38. Re2 {[%clk 0:00:32]} 38... Rxa6 {[%clk
0:00:34.2]} 39. d7 {[%clk 0:00:28]} 39... Ra8 {[%clk 0:00:26.7]} 40. Rh2 {[%clk
0:00:20.6]} 40... Rd8 {[%clk 0:00:23.6]} 41. Rxh3 {[%clk 0:00:04.6]} 41... Rxd7
{[%clk 0:00:23.7]} 42. Re3 {[%clk 0:00:02.4]} 42... Rd4 {[%clk 0:00:22.7]} 43.
Rf3 {[%clk 0:00:03.2]} 43... Ke7 {[%clk 0:00:21.4]} 44. Rf2 {[%clk 0:00:03.8]}
44... Ke6 {[%clk 0:00:21.1]} 45. f5+ {[%clk 0:00:03.4]} 45... gxf5 {[%clk
0:00:15.8]} 46. Re2+ {[%clk 0:00:03.8]} 46... Kd6 {[%clk 0:00:12.6]} 47. Ra2
{[%clk 0:00:03]} 47... f4 {[%clk 0:00:11.5]} 48. Ra6+ {[%clk 0:00:02.4]} 48...
Ke5 {[%clk 0:00:12.1]} 49. Rc6 {[%clk 0:00:01.3]} 49... Kd5 {[%clk 0:00:10.3]}
0-1

[Event "Early-Titled-Tuesday-Blitz-January-23-2024"]
[Site "Chess.com"]
[Date "2024.01.23"]
[Round "7"]
[White "DavidGavrilescu18"]
[Black "Zgorl"]
[Result "0-1"]
[WhiteElo "2793"]
[BlackElo "2522"]
[TimeControl "180+1"]
[EndTime "9:18:19 PST"]
[Termination "Zgorl won by checkmate"]

1. Nc3 {[%clk 0:02:54.8]} 1... Nf6 {[%clk 0:02:59.2]} 2. Nf3 {[%clk 0:02:51.5]}
2... Nc6 {[%clk 0:02:57.2]} 3. e3 {[%clk 0:02:48.7]} 3... g6 {[%clk 0:02:54.1]}
4. Rb1 {[%clk 0:02:46.3]} 4... Bg7 {[%clk 0:02:53.4]} 5. b4 {[%clk 0:02:46.5]}
5... a6 {[%clk 0:02:47.8]} 6. a4 {[%clk 0:02:44.8]} 6... O-O {[%clk 0:02:46.8]}
7. b5 {[%clk 0:02:44.8]} 7... axb5 {[%clk 0:02:46.5]} 8. axb5 {[%clk 0:02:45.7]}
8... Nb8 {[%clk 0:02:46.6]} 9. Be2 {[%clk 0:02:44.9]} 9... c5 {[%clk 0:02:42.2]}
10. O-O {[%clk 0:02:41.6]} 10... d5 {[%clk 0:02:37.1]} 11. Bb2 {[%clk
0:02:41.4]} 11... d4 {[%clk 0:02:24]} 12. exd4 {[%clk 0:02:02]} 12... cxd4
{[%clk 0:02:24.9]} 13. Nxd4 {[%clk 0:02:02.9]} 13... Qxd4 {[%clk 0:02:23.7]} 14.
Bf3 {[%clk 0:02:03.8]} 14... Qd8 {[%clk 0:02:16.4]} 15. d4 {[%clk 0:02:00.9]}
15... Nbd7 {[%clk 0:02:14.7]} 16. Re1 {[%clk 0:01:59.2]} 16... Nb6 {[%clk
0:02:13.5]} 17. Qe2 {[%clk 0:01:57.2]} 17... e6 {[%clk 0:02:12.2]} 18. Rbd1
{[%clk 0:01:56.4]} 18... Qc7 {[%clk 0:02:03.2]} 19. h4 {[%clk 0:01:55.5]} 19...
Bd7 {[%clk 0:01:55.4]} 20. h5 {[%clk 0:01:54.8]} 20... Rfc8 {[%clk 0:01:50.3]}
21. Rd3 {[%clk 0:01:43.8]} 21... Nbd5 {[%clk 0:01:43.4]} 22. Qd2 {[%clk
0:01:29.1]} 22... Nxc3 {[%clk 0:01:33.4]} 23. Rxc3 {[%clk 0:01:29]} 23... Qb6
{[%clk 0:01:32.6]} 24. h6 {[%clk 0:01:27.7]} 24... Bh8 {[%clk 0:01:25.4]} 25.
Rxc8+ {[%clk 0:01:13]} 25... Rxc8 {[%clk 0:01:23.8]} 26. d5 {[%clk 0:01:13.9]}
26... Qxb5 {[%clk 0:01:13.3]} 27. c4 {[%clk 0:01:03.2]} 27... Qc5 {[%clk
0:01:05.4]} 28. Bd4 {[%clk 0:00:32.8]} 28... Qxc4 {[%clk 0:01:00.1]} 29. dxe6
{[%clk 0:00:33.1]} 29... Bxe6 {[%clk 0:00:58.6]} 30. Ba1 {[%clk 0:00:21.5]}
30... b5 {[%clk 0:00:51.3]} 31. Qg5 {[%clk 0:00:20.8]} 31... Ne8 {[%clk
0:00:36]} 32. Bxh8 {[%clk 0:00:19.9]} 32... Kxh8 {[%clk 0:00:36.9]} 33. Qe5+
{[%clk 0:00:18.8]} 33... Kg8 {[%clk 0:00:36.5]} 34. Bb7 {[%clk 0:00:18.6]} 34...
Rd8 {[%clk 0:00:32.7]} 35. Ba6 {[%clk 0:00:19]} 35... Qd5 {[%clk 0:00:30.5]} 36.
Qb2 {[%clk 0:00:16.6]} 36... Rb8 {[%clk 0:00:27.3]} 37. Re5 {[%clk 0:00:11.5]}
37... Qd1+ {[%clk 0:00:25.9]} 38. Kh2 {[%clk 0:00:11.9]} 38... Qd6 {[%clk
0:00:23.3]} 39. f4 {[%clk 0:00:07.8]} 39... Qxa6 {[%clk 0:00:22]} 40. f5 {[%clk
0:00:08.4]} 40... Qd6 {[%clk 0:00:19.6]} 41. g3 {[%clk 0:00:04.7]} 41... gxf5
{[%clk 0:00:17.3]} 42. Re2 {[%clk 0:00:02.4]} 42... Qf8 {[%clk 0:00:14]} 43. Qc1
{[%clk 0:00:01.8]} 43... b4 {[%clk 0:00:14.5]} 44. Qg5+ {[%clk 0:00:02]} 44...
Kh8 {[%clk 0:00:14.2]} 45. Qf4 {[%clk 0:00:02.9]} 45... Nf6 {[%clk 0:00:10.3]}
46. Qe5 {[%clk 0:00:02.5]} 46... Qxh6+ {[%clk 0:00:09.8]} 47. Kg2 {[%clk
0:00:02.5]} 47... Rg8 {[%clk 0:00:09.8]} 48. Rf2 {[%clk 0:00:02.2]} 48... Qg7
{[%clk 0:00:10.2]} 49. Rf3 {[%clk 0:00:02.5]} 49... Ne4 {[%clk 0:00:10.4]} 50.
Qf4 {[%clk 0:00:02.6]} 50... b3 {[%clk 0:00:08.2]} 51. Rxb3 {[%clk 0:00:01.9]}
51... Bxb3 {[%clk 0:00:07.9]} 52. Qxf5 {[%clk 0:00:02.5]} 52... Qxg3+ {[%clk
0:00:07.8]} 53. Kf1 {[%clk 0:00:03]} 53... Bc4# {[%clk 0:00:07.6]} 0-1

[Event "Early-Titled-Tuesday-Blitz-January-23-2024"]
[Site "Chess.com"]
[Date "2024.01.23"]
[Round "7"]
[White "BilodeauA"]
[Black "Bigfish1995"]
[Result "0-1"]
[WhiteElo "2931"]
[BlackElo "3122"]
[TimeControl "180+1"]
[EndTime "9:18:21 PST"]
[Termination "Bigfish1995 won on time"]

1. e4 {[%clk 0:02:59.6]} 1... c6 {[%clk 0:02:59.4]} 2. d4 {[%clk 0:02:54.2]}
2... d5 {[%clk 0:02:59.3]} 3. f3 {[%clk 0:02:53.6]} 3... e6 {[%clk 0:02:57.5]}
4. Nc3 {[%clk 0:02:53.5]} 4... Bb4 {[%clk 0:02:57]} 5. Bd2 {[%clk 0:02:53.2]}
5... Ne7 {[%clk 0:02:55.7]} 6. h4 {[%clk 0:02:52.8]} 6... Nd7 {[%clk 0:02:46.5]}
7. Nce2 {[%clk 0:02:52.2]} 7... Ba5 {[%clk 0:02:45.6]} 8. e5 {[%clk 0:02:52.9]}
8... Nf5 {[%clk 0:02:41.6]} 9. Bxa5 {[%clk 0:02:21.8]} 9... Qxa5+ {[%clk
0:02:39.8]} 10. Qd2 {[%clk 0:02:19.9]} 10... Qxd2+ {[%clk 0:02:19.6]} 11. Kxd2
{[%clk 0:02:20.8]} 11... c5 {[%clk 0:02:19.9]} 12. c3 {[%clk 0:02:07.6]} 12...
h5 {[%clk 0:02:20.5]} 13. g3 {[%clk 0:01:54.3]} 13... b5 {[%clk 0:01:57.1]} 14.
Bh3 {[%clk 0:01:53.1]} 14... Ne7 {[%clk 0:01:57.3]} 15. f4 {[%clk 0:01:46.5]}
15... a5 {[%clk 0:01:52.2]} 16. Nf3 {[%clk 0:01:37.9]} 16... b4 {[%clk
0:01:50.9]} 17. Rhc1 {[%clk 0:01:28.3]} 17... Ba6 {[%clk 0:01:35.1]} 18. cxb4
{[%clk 0:01:24.8]} 18... axb4 {[%clk 0:01:23.1]} 19. dxc5 {[%clk 0:01:24.8]}
19... Bxe2 {[%clk 0:01:10.8]} 20. Kxe2 {[%clk 0:01:24.7]} 20... Nc6 {[%clk
0:01:11.5]} 21. Ke3 {[%clk 0:01:01]} 21... Ke7 {[%clk 0:01:10.6]} 22. Nd2 {[%clk
0:00:32.6]} 22... Rhc8 {[%clk 0:01:01.6]} 23. Bf1 {[%clk 0:00:32.8]} 23... Na5
{[%clk 0:00:49.1]} 24. a3 {[%clk 0:00:28.8]} 24... b3 {[%clk 0:00:44.6]} 25. c6
{[%clk 0:00:26.5]} 25... Nb6 {[%clk 0:00:41.5]} 26. Bb5 {[%clk 0:00:22.9]} 26...
f6 {[%clk 0:00:24.6]} 27. a4 {[%clk 0:00:20.7]} 27... fxe5 {[%clk 0:00:20.5]}
28. fxe5 {[%clk 0:00:21.6]} 28... Rf8 {[%clk 0:00:20.9]} 29. Kd4 {[%clk
0:00:12.3]} 29... Rf2 {[%clk 0:00:20.7]} 30. Rd1 {[%clk 0:00:12.9]} 30... Kd8
{[%clk 0:00:20.2]} 31. Kc3 {[%clk 0:00:10.3]} 31... Kc7 {[%clk 0:00:18.1]} 32.
Nxb3 {[%clk 0:00:10.9]} 32... Rf3+ {[%clk 0:00:11.2]} 33. Rd3 {[%clk 0:00:10.9]}
33... Rxd3+ {[%clk 0:00:11.8]} 34. Bxd3 {[%clk 0:00:11.5]} 34... Nxc6 {[%clk
0:00:12.6]} 35. a5 {[%clk 0:00:10.5]} 35... Nd7 {[%clk 0:00:12.2]} 36. Bb5
{[%clk 0:00:10.7]} 36... Ndxe5 {[%clk 0:00:12.2]} 37. a6 {[%clk 0:00:08.2]}
37... Kd6 {[%clk 0:00:12.6]} 38. Bxc6 {[%clk 0:00:04.4]} 38... Nxc6 {[%clk
0:00:12.6]} 39. Nd2 {[%clk 0:00:04.1]} 39... Kc5 {[%clk 0:00:11.3]} 40. b4+
{[%clk 0:00:03.9]} 40... Kb6 {[%clk 0:00:10.1]} 41. Nb3 {[%clk 0:00:04.3]} 41...
e5 {[%clk 0:00:07.9]} 42. Nc5 {[%clk 0:00:04.6]} 42... Kb5 {[%clk 0:00:08.4]}
43. Nd7 {[%clk 0:00:04.3]} 43... Rxa6 {[%clk 0:00:08.2]} 44. Rxa6 {[%clk
0:00:03.6]} 44... Kxa6 {[%clk 0:00:09.1]} 45. Nc5+ {[%clk 0:00:02.3]} 45... Kb5
{[%clk 0:00:09.3]} 46. Ne6 {[%clk 0:00:02.7]} 46... d4+ {[%clk 0:00:10.2]} 47.
Kd3 {[%clk 0:00:02.8]} 47... Nxb4+ {[%clk 0:00:10.7]} 48. Ke4 {[%clk 0:00:03.5]}
48... Kc4 {[%clk 0:00:10.8]} 49. Nxg7 {[%clk 0:00:02.6]} 49... d3 {[%clk
0:00:10.9]} 50. Nf5 {[%clk 0:00:03.3]} 50... Nd5 {[%clk 0:00:10.7]} 51. g4
{[%clk 0:00:01.8]} 51... d2 {[%clk 0:00:10.8]} 52. Nd6+ {[%clk 0:00:02.7]} 52...
Kc5 {[%clk 0:00:11.2]} 53. Nb7+ {[%clk 0:00:02.8]} 53... Kb6 {[%clk 0:00:11.9]}
0-1